[Event "Early-Titled-Tuesday-Blitz-February-06-2024"]
[Site "Chess.com"]
[Date "2024.02.06"]
[Round "10"]
[White "noblerone"]
[Black "Chesstiger64"]
[Result "1-0"]
[WhiteElo "2456"]
[BlackElo "2280"]
[TimeControl "180+1"]
[EndTime "9:55:33 PST"]
[Termination "noblerone won by resignation"]

1. d4 {[%clk 0:03:00.9]} 1... d6 {[%clk 0:02:58.2]} 2. c4 {[%clk 0:02:53.4]}
2... e5 {[%clk 0:02:57.9]} 3. e3 {[%clk 0:02:48.5]} 3... Nc6 {[%clk 0:02:56.9]}
4. Nf3 {[%clk 0:02:48.2]} 4... Nf6 {[%clk 0:02:57]} 5. Nc3 {[%clk 0:02:48.1]}
5... Bg4 {[%clk 0:02:56.8]} 6. Be2 {[%clk 0:02:48.2]} 6... Be7 {[%clk
0:02:54.1]} 7. h3 {[%clk 0:02:46.5]} 7... Bh5 {[%clk 0:02:52.9]} 8. b4 {[%clk
0:02:21.7]} 8... exd4 {[%clk 0:02:50.2]} 9. Nxd4 {[%clk 0:02:19.6]} 9... Bxe2
{[%clk 0:02:48.6]} 10. Ncxe2 {[%clk 0:02:15]} 10... Nxd4 {[%clk 0:02:46.5]} 11.
Nxd4 {[%clk 0:02:14.3]} 11... O-O {[%clk 0:02:45.9]} 12. O-O {[%clk 0:02:14.2]}
12... Nd7 {[%clk 0:02:43.9]} 13. Bb2 {[%clk 0:02:05.3]} 13... Bf6 {[%clk
0:02:43.9]} 14. Qc2 {[%clk 0:02:04.6]} 14... a5 {[%clk 0:02:44.1]} 15. a3 {[%clk
0:02:04.4]} 15... axb4 {[%clk 0:02:44]} 16. axb4 {[%clk 0:02:05.3]} 16... Rxa1
{[%clk 0:02:43.6]} 17. Bxa1 {[%clk 0:02:06.2]} 17... Re8 {[%clk 0:02:40.1]} 18.
Rd1 {[%clk 0:02:03.1]} 18... Ne5 {[%clk 0:02:37.7]} 19. Nf5 {[%clk 0:02:00.1]}
19... g6 {[%clk 0:02:33.8]} 20. Ng3 {[%clk 0:01:57.7]} 20... Qe7 {[%clk
0:02:27.8]} 21. Ne2 {[%clk 0:01:40.7]} 21... Bg7 {[%clk 0:02:19.7]} 22. Nf4
{[%clk 0:01:40.6]} 22... c6 {[%clk 0:02:05.6]} 23. b5 {[%clk 0:01:33.5]} 23...
Ra8 {[%clk 0:02:00.8]} 24. Bd4 {[%clk 0:01:30.8]} 24... Nd7 {[%clk 0:01:50.1]}
25. Bxg7 {[%clk 0:01:29.3]} 25... Kxg7 {[%clk 0:01:51]} 26. Qc3+ {[%clk
0:01:26]} 26... Ne5 {[%clk 0:01:50.3]} 27. Nd3 {[%clk 0:01:21.7]} 27... Qf6
{[%clk 0:01:41.2]} 28. Nxe5 {[%clk 0:01:14.3]} 28... dxe5 {[%clk 0:01:41]} 29.
bxc6 {[%clk 0:00:54.1]} 29... Ra2 {[%clk 0:01:38.6]} 30. f4 {[%clk 0:00:43.5]}
30... bxc6 {[%clk 0:01:23.2]} 31. Qxe5 {[%clk 0:00:26.2]} 31... Qxe5 {[%clk
0:01:23.2]} 32. fxe5 {[%clk 0:00:27.1]} 32... Ra5 {[%clk 0:01:08.7]} 33. e6
{[%clk 0:00:20.8]} 33... fxe6 {[%clk 0:01:02.4]} 34. Rd7+ {[%clk 0:00:21.4]}
34... Kf6 {[%clk 0:01:02]} 35. Rxh7 {[%clk 0:00:21.5]} 35... Rc5 {[%clk
0:01:01.6]} 36. Kf2 {[%clk 0:00:21.6]} 36... Rxc4 {[%clk 0:01:02]} 37. Kf3
{[%clk 0:00:22.2]} 37... e5 {[%clk 0:00:59.4]} 38. Rc7 {[%clk 0:00:21.9]} 38...
Rc1 {[%clk 0:00:58.9]} 39. g4 {[%clk 0:00:21.8]} 39... g5 {[%clk 0:00:50.8]} 40.
Ke4 {[%clk 0:00:21.5]} 40... Rc4+ {[%clk 0:00:49.9]} 41. Kd3 {[%clk 0:00:21.6]}
41... Rc1 {[%clk 0:00:50.1]} 42. Ke4 {[%clk 0:00:21.9]} 42... Rc4+ {[%clk
0:00:50]} 43. Kd3 {[%clk 0:00:22.4]} 43... Rc1 {[%clk 0:00:50.2]} 44. Rc8 {[%clk
0:00:22.8]} 44... Rc5 {[%clk 0:00:49.4]} 45. Rf8+ {[%clk 0:00:20.7]} 45... Kg6
{[%clk 0:00:45.2]} 46. Ke4 {[%clk 0:00:18.9]} 46... Rd5 {[%clk 0:00:39.8]} 47.
Rc8 {[%clk 0:00:16.7]} 47... Rd6 {[%clk 0:00:36.8]} 48. Kxe5 {[%clk 0:00:15.4]}
48... Rd3 {[%clk 0:00:37]} 49. Rxc6+ {[%clk 0:00:15.2]} 49... Kf7 {[%clk
0:00:35.9]} 50. e4 {[%clk 0:00:14.8]} 50... Rxh3 {[%clk 0:00:35.4]} 51. Kf5
{[%clk 0:00:14.5]} 51... Rf3+ {[%clk 0:00:35.4]} 52. Kxg5 {[%clk 0:00:14.9]}
52... Rf1 {[%clk 0:00:35.5]} 53. e5 {[%clk 0:00:14.1]} 53... Rf2 {[%clk
0:00:34.3]} 54. Rf6+ {[%clk 0:00:14.5]} 54... Rxf6 {[%clk 0:00:32.9]} 55. exf6
{[%clk 0:00:15.4]} 55... Ke6 {[%clk 0:00:33.3]} 56. Kg6 {[%clk 0:00:15.8]} 1-0

[Event "Early-Titled-Tuesday-Blitz-February-06-2024"]
[Site "Chess.com"]
[Date "2024.02.06"]
[Round "10"]
[White "Schattman"]
[Black "tylityli"]
[Result "1-0"]
[WhiteElo "2390"]
[BlackElo "2238"]
[TimeControl "180+1"]
[EndTime "9:55:34 PST"]
[Termination "Schattman won on time"]

1. f4 {[%clk 0:03:00.9]} 1... e5 {[%clk 0:02:53]} 2. fxe5 {[%clk 0:03:00.5]}
2... d6 {[%clk 0:02:52.4]} 3. exd6 {[%clk 0:03:00.8]} 3... Bxd6 {[%clk
0:02:52.4]} 4. Nf3 {[%clk 0:03:00.8]} 4... g5 {[%clk 0:02:53]} 5. g3 {[%clk
0:02:55.9]} 5... g4 {[%clk 0:02:52.7]} 6. Nh4 {[%clk 0:02:55.9]} 6... Ne7 {[%clk
0:02:52.3]} 7. d4 {[%clk 0:02:46.5]} 7... Ng6 {[%clk 0:02:51.6]} 8. Ng2 {[%clk
0:02:44.3]} 8... f5 {[%clk 0:02:39.3]} 9. e3 {[%clk 0:02:40.5]} 9... h5 {[%clk
0:02:32.2]} 10. Nf4 {[%clk 0:02:17]} 10... Qf6 {[%clk 0:02:17.2]} 11. Bb5+
{[%clk 0:02:06.3]} 11... c6 {[%clk 0:02:16]} 12. Bc4 {[%clk 0:02:06.5]} 12... h4
{[%clk 0:02:12.4]} 13. O-O {[%clk 0:02:05.8]} 13... hxg3 {[%clk 0:02:09.1]} 14.
hxg3 {[%clk 0:02:04.9]} 14... Nxf4 {[%clk 0:01:57.8]} 15. exf4 {[%clk
0:02:04.5]} 15... Qh6 {[%clk 0:01:56.8]} 16. Qe2+ {[%clk 0:02:01.4]} 16... Kd8
{[%clk 0:01:56.4]} 17. Qg2 {[%clk 0:02:00.1]} 17... Be6 {[%clk 0:01:39.6]} 18.
Nd2 {[%clk 0:01:48.7]} 18... Nd7 {[%clk 0:01:37.3]} 19. b3 {[%clk 0:01:48.1]}
19... Nb6 {[%clk 0:01:21.1]} 20. Bxe6 {[%clk 0:01:36]} 20... Qxe6 {[%clk
0:01:19.1]} 21. c4 {[%clk 0:01:35.3]} 21... c5 {[%clk 0:01:03.7]} 22. Bb2 {[%clk
0:01:23.3]} 22... Rh3 {[%clk 0:00:58]} 23. Rae1 {[%clk 0:01:00.1]} 23... Qh6
{[%clk 0:00:54.9]} 24. d5 {[%clk 0:00:54.8]} 24... Kc7 {[%clk 0:00:47.2]} 25.
Re6 {[%clk 0:00:54.1]} 25... Qh5 {[%clk 0:00:33]} 26. Rfe1 {[%clk 0:00:50]}
26... Rd8 {[%clk 0:00:27.9]} 27. Nf1 {[%clk 0:00:44.7]} 27... Kc8 {[%clk
0:00:19.2]} 28. a4 {[%clk 0:00:43.2]} 28... Na8 {[%clk 0:00:17.2]} 29. a5 {[%clk
0:00:43.4]} 29... Nc7 {[%clk 0:00:17.2]} 30. Rxd6 {[%clk 0:00:28.7]} 30... Rxd6
{[%clk 0:00:16.8]} 31. Be5 {[%clk 0:00:27.6]} 31... Rh6 {[%clk 0:00:16]} 32. d6
{[%clk 0:00:28]} 32... Ne6 {[%clk 0:00:14.9]} 33. a6 {[%clk 0:00:27.7]} 33...
Nd8 {[%clk 0:00:13.1]} 34. axb7+ {[%clk 0:00:25.6]} 34... Nxb7 {[%clk
0:00:10.9]} 35. d7+ {[%clk 0:00:26]} 35... Kxd7 {[%clk 0:00:10.3]} 36. Qxb7+
{[%clk 0:00:25.4]} 36... Ke8 {[%clk 0:00:05.7]} 37. Bg7+ {[%clk 0:00:23.1]}
37... Kd8 {[%clk 0:00:04.8]} 38. Qb8+ {[%clk 0:00:16.1]} 38... Kd7 {[%clk
0:00:04.7]} 39. Qb7+ {[%clk 0:00:15.3]} 39... Kd6 {[%clk 0:00:01.3]} 40. Bxh6
{[%clk 0:00:14.9]} 1-0

[Event "Early-Titled-Tuesday-Blitz-February-06-2024"]
[Site "Chess.com"]
[Date "2024.02.06"]
[Round "10"]
[White "Aslanov_Umid"]
[Black "LangesNasenhaar"]
[Result "1-0"]
[WhiteElo "2671"]
[BlackElo "2512"]
[TimeControl "180+1"]
[EndTime "9:55:35 PST"]
[Termination "Aslanov_Umid won by checkmate"]

1. e4 {[%clk 0:03:00.9]} 1... g6 {[%clk 0:03:00]} 2. d4 {[%clk 0:03:00.8]} 2...
Bg7 {[%clk 0:03:00.5]} 3. Nc3 {[%clk 0:03:01.6]} 3... c6 {[%clk 0:03:01.1]} 4.
f4 {[%clk 0:03:01.9]} 4... d5 {[%clk 0:03:01.3]} 5. e5 {[%clk 0:03:01.8]} 5...
f6 {[%clk 0:03:01.2]} 6. Nf3 {[%clk 0:03:01.8]} 6... Nh6 {[%clk 0:03:01.8]} 7.
h3 {[%clk 0:02:58.2]} 7... Nf5 {[%clk 0:03:00.4]} 8. Kf2 {[%clk 0:02:54]} 8...
fxe5 {[%clk 0:02:58]} 9. fxe5 {[%clk 0:02:47.9]} 9... O-O {[%clk 0:02:54.9]} 10.
g4 {[%clk 0:02:43.2]} 10... Nh4 {[%clk 0:02:46]} 11. Be2 {[%clk 0:02:42.4]}
11... e6 {[%clk 0:02:40.3]} 12. Kg3 {[%clk 0:02:38.4]} 12... Nxf3 {[%clk
0:02:34.8]} 13. Bxf3 {[%clk 0:02:39.3]} 13... c5 {[%clk 0:02:33]} 14. dxc5
{[%clk 0:02:14.6]} 14... Nc6 {[%clk 0:02:27.5]} 15. Nxd5 {[%clk 0:01:15.4]}
15... exd5 {[%clk 0:02:18.3]} 16. Qxd5+ {[%clk 0:01:16.3]} 16... Kh8 {[%clk
0:02:13.9]} 17. Qxd8 {[%clk 0:01:13.2]} 17... Rxd8 {[%clk 0:02:13.9]} 18. Bf4
{[%clk 0:01:08.9]} 18... Nxe5 {[%clk 0:02:05.7]} 19. Rad1 {[%clk 0:01:04.7]}
19... Rf8 {[%clk 0:01:58.4]} 20. Bg2 {[%clk 0:01:03.6]} 20... Nc6 {[%clk
0:01:47.9]} 21. Rhe1 {[%clk 0:01:01.4]} 21... Bxb2 {[%clk 0:01:41.1]} 22. Bh6
{[%clk 0:01:01.5]} 22... Bg7 {[%clk 0:01:32.3]} 23. Bf4 {[%clk 0:01:01.9]} 23...
h6 {[%clk 0:01:21.1]} 24. Bxc6 {[%clk 0:00:58.4]} 24... bxc6 {[%clk 0:01:17.7]}
25. Rd6 {[%clk 0:00:58.4]} 25... g5 {[%clk 0:01:16.7]} 26. Be5 {[%clk
0:00:58.2]} 26... Ba6 {[%clk 0:01:02.8]} 27. Rxh6+ {[%clk 0:00:54.1]} 27... Kg8
{[%clk 0:01:00.8]} 28. Rg6 {[%clk 0:00:53.1]} 28... Rf7 {[%clk 0:00:58.8]} 29.
Rxg5 {[%clk 0:00:53.7]} 29... Re8 {[%clk 0:00:53]} 30. Bxg7 {[%clk 0:00:51.2]}
30... Rxe1 {[%clk 0:00:45.1]} 31. Bc3+ {[%clk 0:00:51.4]} 31... Kh7 {[%clk
0:00:43]} 32. Bxe1 {[%clk 0:00:51.4]} 32... Bc4 {[%clk 0:00:30]} 33. h4 {[%clk
0:00:47.8]} 33... Bxa2 {[%clk 0:00:27.5]} 34. h5 {[%clk 0:00:47.9]} 34... Bd5
{[%clk 0:00:25.4]} 35. Bd2 {[%clk 0:00:41.3]} 35... Rf3+ {[%clk 0:00:22.4]} 36.
Kh4 {[%clk 0:00:39.7]} 36... Rf2 {[%clk 0:00:21.7]} 37. Bc3 {[%clk 0:00:39.8]}
37... Rf7 {[%clk 0:00:18.2]} 38. Rg6 {[%clk 0:00:38.5]} 38... Re7 {[%clk
0:00:16.4]} 39. Kg5 {[%clk 0:00:36.3]} 39... Rf7 {[%clk 0:00:15]} 40. Rf6 {[%clk
0:00:30.8]} 40... Re7 {[%clk 0:00:11.6]} 41. Rf5 {[%clk 0:00:26]} 41... Re3
{[%clk 0:00:09.3]} 42. Bd4 {[%clk 0:00:18.8]} 42... Rg3 {[%clk 0:00:08.5]} 43.
Rf8 {[%clk 0:00:16.1]} 43... Be6 {[%clk 0:00:07.7]} 44. Rh8# {[%clk 0:00:14.5]}
1-0

[Event "Early-Titled-Tuesday-Blitz-February-06-2024"]
[Site "Chess.com"]
[Date "2024.02.06"]
[Round "10"]
[White "carloseduar100"]
[Black "tetrix83"]
[Result "0-1"]
[WhiteElo "2342"]
[BlackElo "2588"]
[TimeControl "180+1"]
[EndTime "9:55:35 PST"]
[Termination "tetrix83 won by resignation"]

1. d4 {[%clk 0:02:56.1]} 1... Nf6 {[%clk 0:02:59.1]} 2. Bg5 {[%clk 0:02:56.6]}
2... c5 {[%clk 0:02:54.5]} 3. d5 {[%clk 0:02:56]} 3... d6 {[%clk 0:02:52.2]} 4.
Nc3 {[%clk 0:02:55.5]} 4... h6 {[%clk 0:02:52.1]} 5. Bh4 {[%clk 0:02:55.1]} 5...
a6 {[%clk 0:02:50.8]} 6. e4 {[%clk 0:02:54.9]} 6... b5 {[%clk 0:02:49.3]} 7.
Bxf6 {[%clk 0:02:55.6]} 7... exf6 {[%clk 0:02:49]} 8. Nf3 {[%clk 0:02:55.9]}
8... g6 {[%clk 0:02:34.8]} 9. Ne2 {[%clk 0:02:53.2]} 9... f5 {[%clk 0:02:29]}
10. e5 {[%clk 0:02:50.7]} 10... Bg7 {[%clk 0:02:26]} 11. exd6 {[%clk 0:02:46.3]}
11... Bxb2 {[%clk 0:02:24.3]} 12. Rb1 {[%clk 0:02:46.1]} 12... Qa5+ {[%clk
0:02:18.5]} 13. Nd2 {[%clk 0:02:36]} 13... Bf6 {[%clk 0:02:10.1]} 14. g3 {[%clk
0:02:25.2]} 14... O-O {[%clk 0:02:08.4]} 15. Bg2 {[%clk 0:02:25.9]} 15... Qd8
{[%clk 0:02:04.9]} 16. c4 {[%clk 0:02:23.4]} 16... Qxd6 {[%clk 0:02:03.2]} 17.
O-O {[%clk 0:02:21.7]} 17... b4 {[%clk 0:02:00.5]} 18. Nb3 {[%clk 0:02:19.9]}
18... a5 {[%clk 0:01:59.1]} 19. Nf4 {[%clk 0:02:08.1]} 19... a4 {[%clk
0:01:56.4]} 20. Nc1 {[%clk 0:02:08.4]} 20... Ba6 {[%clk 0:01:53.4]} 21. Qc2
{[%clk 0:02:02.9]} 21... Nd7 {[%clk 0:01:51.9]} 22. Ncd3 {[%clk 0:02:03.2]}
22... Nb6 {[%clk 0:01:38.9]} 23. Rfe1 {[%clk 0:01:33]} 23... Bxc4 {[%clk
0:01:34.3]} 24. h4 {[%clk 0:01:32.3]} 24... b3 {[%clk 0:01:32.6]} 25. axb3
{[%clk 0:01:31.8]} 25... axb3 {[%clk 0:01:33.4]} 26. Qd2 {[%clk 0:01:30]} 26...
Ra2 {[%clk 0:01:31.4]} 27. Qe3 {[%clk 0:01:28.5]} 27... Bd4 {[%clk 0:01:30.6]}
28. Qe7 {[%clk 0:01:19.8]} 28... Qxe7 {[%clk 0:01:29]} 29. Rxe7 {[%clk
0:01:20.7]} 29... Bxd3 {[%clk 0:01:28.2]} 30. Nxd3 {[%clk 0:01:20.3]} 30... c4
{[%clk 0:01:27.9]} 31. Nf4 {[%clk 0:00:57.4]} 31... c3 {[%clk 0:01:25.1]} 32.
Rxb3 {[%clk 0:00:47.9]} 32... Ra1+ {[%clk 0:01:20]} 33. Kh2 {[%clk 0:00:47.3]}
33... c2 {[%clk 0:01:19.9]} 34. Nd3 {[%clk 0:00:45.2]} 34... Rd1 {[%clk
0:01:13.5]} 35. d6 {[%clk 0:00:37.6]} 35... Rxd3 {[%clk 0:01:11.6]} 36. Rxd3
{[%clk 0:00:38.5]} 36... c1=Q {[%clk 0:01:09.6]} 37. Rxd4 {[%clk 0:00:39.1]}
37... Qc5 {[%clk 0:01:08.7]} 38. Rd2 {[%clk 0:00:29.3]} 38... Rd8 {[%clk
0:01:07.8]} 39. h5 {[%clk 0:00:16.7]} 39... Rxd6 {[%clk 0:01:04.4]} 40. Rde2
{[%clk 0:00:13.2]} 40... gxh5 {[%clk 0:01:01.8]} 41. R7e5 {[%clk 0:00:12.7]}
41... Qc4 {[%clk 0:00:53.7]} 42. Bf3 {[%clk 0:00:10]} 42... h4 {[%clk
0:00:51.3]} 43. Rxf5 {[%clk 0:00:10]} 43... hxg3+ {[%clk 0:00:50.9]} 44. fxg3
{[%clk 0:00:08.5]} 44... Nd7 {[%clk 0:00:49.7]} 45. Kg2 {[%clk 0:00:07.6]} 45...
Rf6 {[%clk 0:00:45.4]} 46. Rxf6 {[%clk 0:00:01.2]} 46... Nxf6 {[%clk 0:00:44.9]}
47. Rf2 {[%clk 0:00:02.1]} 47... Kg7 {[%clk 0:00:44.3]} 48. g4 {[%clk
0:00:01.8]} 48... Nxg4 {[%clk 0:00:42.8]} 49. Kg3 {[%clk 0:00:02.4]} 49... h5
{[%clk 0:00:39.9]} 0-1

[Event "Early-Titled-Tuesday-Blitz-February-06-2024"]
[Site "Chess.com"]
[Date "2024.02.06"]
[Round "10"]
[White "Qingdom"]
[Black "BashirliSaadat"]
[Result "0-1"]
[WhiteElo "2135"]
[BlackElo "2339"]
[TimeControl "180+1"]
[EndTime "9:55:35 PST"]
[Termination "BashirliSaadat won by resignation"]

1. d4 {[%clk 0:03:00.9]} 1... Nf6 {[%clk 0:02:58.3]} 2. Bg5 {[%clk 0:03:00.2]}
2... d5 {[%clk 0:02:57.3]} 3. e3 {[%clk 0:02:59.8]} 3... e6 {[%clk 0:02:56]} 4.
Nf3 {[%clk 0:02:58.6]} 4... Be7 {[%clk 0:02:55.6]} 5. c4 {[%clk 0:02:57.9]} 5...
c6 {[%clk 0:02:54.2]} 6. Nc3 {[%clk 0:02:57.5]} 6... O-O {[%clk 0:02:52.7]} 7.
Bd3 {[%clk 0:02:56.3]} 7... Nbd7 {[%clk 0:02:47.9]} 8. O-O {[%clk 0:02:55.7]}
8... dxc4 {[%clk 0:02:47]} 9. Bxc4 {[%clk 0:02:55.9]} 9... b5 {[%clk 0:02:47.3]}
10. Bd3 {[%clk 0:02:55.3]} 10... Bb7 {[%clk 0:02:47.8]} 11. Qe2 {[%clk
0:02:52.1]} 11... a6 {[%clk 0:02:45.9]} 12. a4 {[%clk 0:02:51.5]} 12... Nb6
{[%clk 0:02:44]} 13. e4 {[%clk 0:02:38.3]} 13... h6 {[%clk 0:02:25.4]} 14. Bxf6
{[%clk 0:02:31.1]} 14... Bxf6 {[%clk 0:02:23.5]} 15. e5 {[%clk 0:02:31.3]} 15...
Be7 {[%clk 0:02:20.4]} 16. Qe4 {[%clk 0:02:31.2]} 16... g6 {[%clk 0:02:19.8]}
17. axb5 {[%clk 0:02:30]} 17... axb5 {[%clk 0:02:17.8]} 18. Qf4 {[%clk
0:02:19.6]} 18... Kg7 {[%clk 0:02:15.1]} 19. Ne4 {[%clk 0:02:15]} 19... Nd5
{[%clk 0:02:13.2]} 20. Qg3 {[%clk 0:02:10.1]} 20... Nb4 {[%clk 0:01:49.7]} 21.
Rxa8 {[%clk 0:02:08.3]} 21... Bxa8 {[%clk 0:01:48.4]} 22. Bb1 {[%clk 0:02:07.6]}
22... Qd5 {[%clk 0:01:38.6]} 23. h4 {[%clk 0:01:53.7]} 23... Qd8 {[%clk
0:01:23.6]} 24. h5 {[%clk 0:01:53]} 24... g5 {[%clk 0:01:13.5]} 25. Rc1 {[%clk
0:01:07.3]} 25... Nd5 {[%clk 0:01:05.8]} 26. Qh2 {[%clk 0:00:49.6]} 26... Nf4
{[%clk 0:01:03.7]} 27. Kf1 {[%clk 0:00:46.7]} 27... Bb7 {[%clk 0:00:56.3]} 28.
g3 {[%clk 0:00:47]} 28... Nd5 {[%clk 0:00:52.9]} 29. Nc5 {[%clk 0:00:36.4]}
29... Bxc5 {[%clk 0:00:50.7]} 30. Rxc5 {[%clk 0:00:35.5]} 30... b4 {[%clk
0:00:48.7]} 31. Kg2 {[%clk 0:00:34.6]} 31... Qe7 {[%clk 0:00:46.9]} 32. Qh1
{[%clk 0:00:33.6]} 32... Ra8 {[%clk 0:00:46]} 33. Qc1 {[%clk 0:00:32.2]} 33...
Ra1 {[%clk 0:00:42.9]} 34. Qc2 {[%clk 0:00:32.4]} 34... Kf8 {[%clk 0:00:26.3]}
35. Qh7 {[%clk 0:00:31.3]} 35... Ke8 {[%clk 0:00:26]} 36. Be4 {[%clk 0:00:29.6]}
36... Qf8 {[%clk 0:00:24.8]} 37. Nd2 {[%clk 0:00:20.9]} 37... Rd1 {[%clk
0:00:23]} 38. Nc4 {[%clk 0:00:20.9]} 38... Ba6 {[%clk 0:00:17.2]} 39. Nd6+
{[%clk 0:00:20.8]} 39... Kd7 {[%clk 0:00:16.8]} 40. Nxf7 {[%clk 0:00:20.4]}
40... Ne7 {[%clk 0:00:15.7]} 41. Nxh6 {[%clk 0:00:18.9]} 41... Bf1+ {[%clk
0:00:15.6]} 42. Kh2 {[%clk 0:00:18.4]} 42... Qxf2+ {[%clk 0:00:16.1]} 43. Kh1
{[%clk 0:00:16.2]} 43... Bg2+ {[%clk 0:00:15.1]} 44. Kh2 {[%clk 0:00:16.4]}
44... Bxe4+ {[%clk 0:00:15.2]} 45. Kh3 {[%clk 0:00:15.5]} 45... Bxh7 {[%clk
0:00:15.7]} 0-1

[Event "Early-Titled-Tuesday-Blitz-February-06-2024"]
[Site "Chess.com"]
[Date "2024.02.06"]
[Round "10"]
[White "jacky72"]
[Black "Huragan007"]
[Result "1/2-1/2"]
[WhiteElo "2805"]
[BlackElo "2611"]
[TimeControl "180+1"]
[EndTime "9:55:37 PST"]
[Termination "Game drawn by repetition"]

1. Nc3 {[%clk 0:03:00.9]} 1... Nf6 {[%clk 0:02:59.7]} 2. e4 {[%clk 0:03:01.3]}
2... d6 {[%clk 0:02:54.2]} 3. d4 {[%clk 0:03:00.9]} 3... g6 {[%clk 0:02:54.3]}
4. Nf3 {[%clk 0:02:57.2]} 4... Bg7 {[%clk 0:02:53.6]} 5. Be2 {[%clk 0:02:58.1]}
5... O-O {[%clk 0:02:53.6]} 6. O-O {[%clk 0:02:59]} 6... a6 {[%clk 0:02:54.1]}
7. a4 {[%clk 0:02:58.6]} 7... b6 {[%clk 0:02:53.2]} 8. Re1 {[%clk 0:02:49.6]}
8... Bb7 {[%clk 0:02:53.3]} 9. Bf1 {[%clk 0:02:50.3]} 9... c5 {[%clk 0:02:51.2]}
10. d5 {[%clk 0:02:49.2]} 10... Nbd7 {[%clk 0:02:49.6]} 11. Nd2 {[%clk
0:02:46.7]} 11... Ne8 {[%clk 0:02:37.4]} 12. Nc4 {[%clk 0:02:46.1]} 12... Ne5
{[%clk 0:02:32.9]} 13. Ne3 {[%clk 0:02:43.8]} 13... Nc7 {[%clk 0:02:26.7]} 14.
f4 {[%clk 0:02:38.9]} 14... Nd7 {[%clk 0:02:26.8]} 15. Kh1 {[%clk 0:02:39.2]}
15... Qb8 {[%clk 0:02:13.4]} 16. Qg4 {[%clk 0:02:35.1]} 16... Nf6 {[%clk
0:02:11.2]} 17. Qf3 {[%clk 0:02:35.5]} 17... b5 {[%clk 0:02:03.6]} 18. axb5
{[%clk 0:02:28.7]} 18... axb5 {[%clk 0:02:03.8]} 19. Rxa8 {[%clk 0:02:27.4]}
19... Bxa8 {[%clk 0:02:04.2]} 20. Ne2 {[%clk 0:02:12.8]} 20... e6 {[%clk
0:01:47.3]} 21. Rd1 {[%clk 0:01:55.7]} 21... exd5 {[%clk 0:01:38.4]} 22. Nxd5
{[%clk 0:01:55.6]} 22... Nfxd5 {[%clk 0:01:23]} 23. exd5 {[%clk 0:01:56.5]}
23... Qb7 {[%clk 0:01:22.3]} 24. f5 {[%clk 0:01:54.4]} 24... Nxd5 {[%clk
0:01:19.5]} 25. Nf4 {[%clk 0:01:51.5]} 25... Nxf4 {[%clk 0:01:12.6]} 26. Qxb7
{[%clk 0:01:52.4]} 26... Bxb7 {[%clk 0:01:12.5]} 27. Bxf4 {[%clk 0:01:53.1]}
27... Bxb2 {[%clk 0:01:11.3]} 28. Bxb5 {[%clk 0:01:41.6]} 28... d5 {[%clk
0:00:51.6]} 29. Bd6 {[%clk 0:01:41.3]} 29... Rc8 {[%clk 0:00:47]} 30. Rb1 {[%clk
0:01:41.2]} 30... Ra8 {[%clk 0:00:39.2]} 31. fxg6 {[%clk 0:01:36.5]} 31... hxg6
{[%clk 0:00:38.7]} 32. Bxc5 {[%clk 0:01:36.2]} 32... Ra1 {[%clk 0:00:37.6]} 33.
Rxa1 {[%clk 0:01:35.7]} 33... Bxa1 {[%clk 0:00:38.3]} 34. Kg1 {[%clk 0:01:34.3]}
34... Be5 {[%clk 0:00:31.1]} 35. g3 {[%clk 0:01:32.7]} 35... Kg7 {[%clk
0:00:27.6]} 36. Kf2 {[%clk 0:01:33.2]} 36... Kf6 {[%clk 0:00:27.6]} 37. Ke3
{[%clk 0:01:33.8]} 37... Ke6 {[%clk 0:00:26.5]} 38. Be8 {[%clk 0:01:31.1]} 38...
g5 {[%clk 0:00:21.4]} 39. Bb5 {[%clk 0:01:27.5]} 39... f5 {[%clk 0:00:21.1]} 40.
Bd3 {[%clk 0:01:22.8]} 40... f4+ {[%clk 0:00:21.6]} 41. Kf2 {[%clk 0:01:23.3]}
41... fxg3+ {[%clk 0:00:21.5]} 42. hxg3 {[%clk 0:01:24.2]} 42... Bd6 {[%clk
0:00:20.6]} 43. Be3 {[%clk 0:01:21.5]} 43... Be7 {[%clk 0:00:20.5]} 44. g4
{[%clk 0:01:20.6]} 44... Bf6 {[%clk 0:00:20.6]} 45. Bd2 {[%clk 0:01:14.3]} 45...
Kd6 {[%clk 0:00:20.1]} 46. Bb4+ {[%clk 0:01:13.2]} 46... Ke6 {[%clk 0:00:19.8]}
47. Bf5+ {[%clk 0:01:12.2]} 47... Kf7 {[%clk 0:00:20.2]} 48. Ke3 {[%clk
0:01:10.5]} 48... Ba6 {[%clk 0:00:19.7]} 49. Bc5 {[%clk 0:01:07.7]} 49... Bc4
{[%clk 0:00:19.1]} 50. Bd4 {[%clk 0:01:07.9]} 50... Bxd4+ {[%clk 0:00:17.6]} 51.
Kxd4 {[%clk 0:01:08.8]} 51... Kf6 {[%clk 0:00:18.1]} 52. Bd7 {[%clk 0:01:00.5]}
52... Ba2 {[%clk 0:00:18]} 53. Bb5 {[%clk 0:00:55.5]} 53... Ke6 {[%clk
0:00:17.4]} 54. Bd3 {[%clk 0:00:52.1]} 54... Kd6 {[%clk 0:00:16.3]} 55. Bf5
{[%clk 0:00:51.7]} 55... Bc4 {[%clk 0:00:15.9]} 56. Bh7 {[%clk 0:00:51.6]} 56...
Be2 {[%clk 0:00:16.1]} 57. Bf5 {[%clk 0:00:51.4]} 57... Bd1 {[%clk 0:00:16.1]}
58. c3 {[%clk 0:00:50.1]} 58... Bf3 {[%clk 0:00:16.7]} 59. Bc8 {[%clk
0:00:48.8]} 59... Bd1 {[%clk 0:00:16.8]} 60. Bf5 {[%clk 0:00:49.2]} 60... Bf3
{[%clk 0:00:17.1]} 61. Ke3 {[%clk 0:00:49.8]} 61... Bd1 {[%clk 0:00:17.2]} 62.
Kd2 {[%clk 0:00:50.4]} 62... Bf3 {[%clk 0:00:17.4]} 63. Ke3 {[%clk 0:00:50.8]}
63... Bd1 {[%clk 0:00:17.4]} 64. Kd4 {[%clk 0:00:51.3]} 1/2-1/2